bitfinex/quotes_SOLUSD_20250401
["timestamp","ask_amount","ask_price","bid_price","bid_amount"]
[1743468697299,11.82125349,124.44,124.36,20.0]
[1743468697596,81.3,124.47,124.37,20.0]
[1743468697777,31.40286502,124.48,124.37,27.52]
[1743468697984,31.40286502,124.48,124.38,28.1394]
[1743468698482,30.45226502,124.52,124.41,20.0]
[1743468698799,0.14216157,124.51,124.42,7.54]
[1743468699099,0.14216157,124.5,124.42,7.54]
[1743468699582,0.28432314,124.51,124.41,20.0]
[1743468699783,0.14216157,124.51,124.41,27.56]
[1743468700189,0.14216157,124.51,124.42,28.1304]
[1743468700397,0.14216157,124.52,124.42,27.1304]
[1743468700600,0.28432314,124.54,124.42,27.1304]
[1743468700978,7.58,124.54,124.43,7.58]
[1743468701381,11.71672186,124.53,124.42,69.13774642]
[1743468701596,18.7708555,124.54,124.42,69.13774642]
[1743468701789,7.62,124.53,124.44,12.20713245]
[1743468702203,15.6506,124.53,124.45,8.0353]
[1743468702402,7.62,124.53,124.45,8.0353]
[1743468702905,18.933972,124.54,124.46,12.20713245]
[1743468703207,32.86335343,124.55,124.46,12.20713245]
[1743468703583,20.0,124.52,124.46,12.20713245]
[1743468703903,82.13551789,124.54,124.46,12.20713245]
[1743468704099,20.0,124.5,124.46,12.20713245]
[1743468704305,28.0322,124.5,124.46,12.20713245]
[1743468704600,28.0322,124.5,124.43,56.86502982]
[1743468704782,7.68,124.51,124.43,56.86502982]
[1743468704983,81.3,124.53,124.43,76.95662982]
[1743468705201,0.28432314,124.52,124.43,76.95662982]
[1743468705604,0.28432314,124.52,124.44,18.64964886]
[1743468705806,0.28432314,124.52,124.45,7.7]
[1743468706107,0.28432314,124.54,124.45,7.7]
[1743468706282,0.28432314,124.54,124.46,8.0347]
[1743468706683,0.28432314,124.54,124.46,28.1214]
[1743468707601,26.963772,124.54,124.46,8.0347]
[1743468707803,18.933972,124.52,124.43,48.82852982]
[1743468707996,0.28432314,124.48,124.43,48.82852982]
[1743468708193,0.28432314,124.5,124.43,48.82852982]
[1743468708194,0.14216157,124.49,124.43,48.82852982]
[1743468708396,0.28432314,124.47,124.43,48.82852982]
[1743468708706,0.28432314,124.47,124.43,56.86492982]
[1743468709011,0.28432314,124.48,124.43,56.86492982]
[1743468709424,0.28432314,124.48,124.43,76.95652982]
[1743468709600,0.28432314,124.51,124.43,76.95652982]
[1743468709802,0.28432314,124.51,124.44,18.64964886]
[1743468710318,0.28432314,124.53,124.45,28.1236]
[1743468710917,0.28432314,124.53,124.46,18.64964886]
[1743468711120,0.28432314,124.54,124.46,18.64964886]
[1743468711294,0.28432314,124.54,124.45,28.1236]
[1743468711492,0.28432314,124.54,124.45,68.3003]
[1743468711993,0.28432314,124.54,124.46,18.64964886]
[1743468712303,0.14216157,124.54,124.5,28.1124]
[1743468712512,23.99853554,124.55,124.5,35.9924]
[1743468713018,23.99853554,124.55,124.5,37.5453]
[1743468713905,0.14216157,124.54,124.5,37.5453]
[1743468714088,0.28432314,124.54,124.5,8.0321]
[1743468714291,18.933972,124.54,124.45,8.0353]
[1743468714498,0.28432314,124.52,124.45,8.0353]
[1743468715397,0.28432314,124.52,124.45,28.1236]
[1743468715811,0.063,124.54,124.46,18.64964886]
[1743468716110,0.34732314,124.54,124.46,18.64964886]
[1743468716294,0.063,124.54,124.49,20.0]
[1743468716494,0.063,124.54,124.5,28.1124]
[1743468716716,23.99853554,124.55,124.51,18.64964886]
[1743468717715,0.14216157,124.54,124.51,8.14]
[1743468717897,0.28432314,124.54,124.5,8.0321]
[1743468718098,0.28432314,124.54,124.48,8.0334]
[1743468718323,0.28432314,124.54,124.47,8.0338]
[1743468718535,0.28432314,124.54,124.46,28.1214]
[1743468718695,81.58432314,124.54,124.46,28.1214]
[1743468718888,0.28432314,124.54,124.46,28.1214]
[1743468719134,0.28432314,124.54,124.47,18.64964886]
[1743468719494,0.28432314,124.54,124.46,68.2949]
[1743468719702,0.28432314,124.54,124.46,28.1214]
[1743468719901,89.61382314,124.54,124.46,8.0347]
[1743468720297,81.58432314,124.54,124.46,28.1214]
[1743468720530,23.99853554,124.55,124.46,28.1214]
[1743468720729,0.28432314,124.54,124.47,18.64964886]
[1743468721230,0.28432314,124.54,124.46,28.1214]
[1743468721429,8.86432314,124.54,124.42,313.25]
[1743468721630,0.28432314,124.52,124.43,8.0366]
[1743468721997,0.28432314,124.52,124.43,28.1282]
[1743468722235,18.933972,124.52,124.43,8.0366]
[1743468722398,0.28432314,124.48,124.42,0.03]
[1743468723449,0.14216157,124.48,124.42,0.03]
[1743468723626,0.28432314,124.5,124.42,18.67964886]
[1743468723823,0.14216157,124.5,124.45,20.0]
[1743468724158,0.28432314,124.52,124.45,20.0]
[1743468724362,0.14216157,124.52,124.46,18.64964886]
[1743468724652,0.14216157,124.52,124.47,8.034]
[1743468724820,0.14216157,124.54,124.47,8.034]
[1743468724821,8.31382314,124.54,124.47,8.034]
[1743468725155,0.28432314,124.54,124.47,8.034]
[1743468725742,0.14216157,124.54,124.48,18.64964886]
[1743468725933,23.99853554,124.55,124.48,18.64964886]
[1743468726129,23.99853554,124.55,124.48,20.19154886]
[1743468726438,0.28432314,124.54,124.48,1.5419]
[1743468726744,0.28432314,124.54,124.47,28.1191]
[1743468726745,0.28432314,124.54,124.49,8.0327]
[1743468727323,0.14216157,124.54,124.49,28.1146]
[1743468727669,23.99853554,124.55,124.5,27.64964886]
[1743468727816,23.99853554,124.55,124.53,20.0]
[1743468728024,23.99853554,124.55,124.54,18.64964886]
[1743468728227,0.063,124.63,124.57,20.0]
[1743468728526,0.063,124.67,124.65,20.0]
[1743468728725,0.063,124.67,124.66,20.0]
[1743468728938,0.063,124.72,124.66,20.0]
[1743468729254,0.063,124.72,124.67,1.5834]
[1743468729470,0.063,124.78,124.68,6.2754]
[1743468729769,0.063,124.78,124.71,20.0]
[1743468729937,0.063,124.78,124.75,20.0]
[1743468730252,81.3,124.87,124.75,20.0]
[1743468730443,0.0001,124.79,124.75,34.2]
[1743468730648,0.0001,124.79,124.78,20.0]
[1743468730862,0.063,124.88,124.79,20.0]
[1743468731071,0.063,124.88,124.79,35.88]
[1743468731269,0.063,124.88,124.79,56.05449679]
[1743468731455,0.063,124.88,124.83,20.0]
[1743468731958,0.063,124.88,124.8,18.64964886]
[1743468732345,0.063,124.88,124.83,38.64964886]
[1743468732652,0.0001,124.88,124.84,24.33564509]
[1743468732865,24.66718472,125.07,124.84,16.32544509]
[1743468732866,18.79181043,124.98,124.84,16.32544509]
[1743468733182,0.14216157,124.95,124.87,20.0]
[1743468733381,18.79181043,124.96,124.83,28.038]
[1743468733382,33.55173106,124.94,124.85,16.32544509]
[1743468733747,20.0,124.96,124.85,16.32544509]
[1743468734692,20.0,124.92,124.85,16.32544509]
[1743468734869,20.0,124.92,124.88,16.32544509]
[1743468735178,36.2,124.92,124.88,16.32544509]
[1743468735365,18.933972,124.9,124.74,8.0166]
[1743468735566,18.933972,124.88,124.74,8.0166]
[1743468735785,18.933972,124.88,124.77,20.0]
[1743468735786,0.28432314,124.88,124.77,20.0]
[1743468735945,0.28432314,124.92,124.81,20.0]
[1743468736150,0.28432314,124.92,124.81,32.16811316]
[1743468736349,0.14216157,124.92,124.85,20.0]
[1743468736652,0.28432314,124.96,124.83,8.0106]
[1743468736950,0.28432314,124.96,124.82,26.66114886]
[1743468737364,18.933972,124.96,124.82,26.66114886]
[1743468737577,20.28432314,124.91,124.79,20.18151316]
[1743468737763,0.28432314,124.89,124.79,12.16811316]
[1743468737959,0.28432314,124.89,124.79,20.18141316]
[1743468738159,0.28432314,124.89,124.79,12.16811316]
[1743468738371,0.28432314,124.86,124.79,12.16811316]
[1743468738569,0.28432314,124.83,124.79,12.16811316]
[1743468739094,0.14216157,124.9,124.79,20.18151316]
[1743468739267,0.28432314,124.88,124.8,18.64964886]
[1743468739787,0.28432314,124.86,124.78,18.64964886]
[1743468739975,0.31432314,124.86,124.76,8.0152]
[1743468740178,0.28432314,124.84,124.73,7.9881]
[1743468740390,0.28432314,124.84,124.74,18.64964886]
[1743468740583,0.28432314,124.81,124.69,173.09202241]
[1743468740783,26.946372,124.81,124.69,97.14024407]
[1743468741404,0.28432314,124.75,124.66,21.95187206]
[1743468741575,47.50503428,124.75,124.66,21.95187206]
[1743468741771,20.28432314,124.7,124.66,21.95187206]
[1743468741977,48.85538542,124.7,124.66,21.95187206]
[1743468742277,0.28432314,124.68,124.66,21.95187206]
[1743468742864,40.61635765,124.73,124.67,18.64964886]
[1743468743074,0.14216157,124.72,124.66,21.95187206]
[1743468743292,0.14216157,124.72,124.67,18.64964886]
[1743468743601,24.1437405,124.68,124.67,18.64964886]
[1743468743905,24.1437405,124.68,124.63,16.92]
[1743468743906,24.1437405,124.68,124.63,13.19179792]
[1743468744198,0.28432314,124.75,124.67,20.0]
[1743468744563,0.28432314,124.75,124.66,20.0]
[1743468744763,0.14216157,124.75,124.66,20.0]
[1743468744960,28.85538542,124.74,124.67,20.0]
[1743468745165,28.85538542,124.74,124.64,20.0563]
[1743468745166,60.98552694,124.74,124.64,20.0]
[1743468745365,28.85538542,124.73,124.64,20.0]
[1743468745983,28.85538542,124.73,124.68,20.0]
[1743468746186,32.41446466,124.74,124.69,18.64964886]
[1743468746599,0.28432314,124.73,124.61,189.97946157]
[1743468746906,0.28432314,124.7,124.61,28.0871]
[1743468747406,0.28432314,124.7,124.62,18.64964886]
[1743468748002,0.28432314,124.7,124.61,8.025]
[1743468748378,0.28432314,124.71,124.62,18.64964886]
[1743468748779,40.43126466,124.74,124.66,8.0218]
[1743468748780,32.41446466,124.74,124.66,8.0218]
[1743468748979,0.28432314,124.73,124.66,8.0218]
[1743468749513,0.14216157,124.73,124.67,18.64964886]
[1743468749688,32.41446466,124.74,124.7,20.0]
[1743468749971,0.28432314,124.73,124.66,8.0218]
[1743468750280,18.933972,124.73,124.65,8.0223]
[1743468750908,8.30202314,124.73,124.65,8.0223]
[1743468751105,26.951672,124.73,124.64,18.64964886]
[1743468751782,0.28432314,124.73,124.64,18.64964886]
[1743468751984,0.14216157,124.73,124.64,18.64964886]
[1743468752181,32.41446466,124.74,124.69,18.64964886]
[1743468752374,28.57106228,124.81,124.71,18.64964886]
[1743468752573,0.14216157,124.8,124.71,18.64964886]
[1743468752774,0.28432314,124.8,124.71,18.64964886]
[1743468752974,0.28432314,124.8,124.72,8.0179]
[1743468753201,28.57106228,124.84,124.73,18.64964886]
[1743468753413,0.28432314,124.83,124.73,18.64964886]
[1743468753623,26.944972,124.83,124.73,18.64964886]
[1743468753810,26.944972,124.83,124.71,26.66824886]
[1743468753811,0.28432314,124.81,124.71,26.66824886]
[1743468753994,0.28432314,124.77,124.68,18.64964886]
[1743468754706,0.28432314,124.77,124.67,17.243]
[1743468754707,18.933972,124.77,124.67,0.063]
[1743468754924,0.28432314,124.7,124.67,0.063]
[1743468755994,18.933972,124.7,124.67,0.063]
[1743468756910,20.28432314,124.68,124.67,0.063]
[1743468757106,46.954472,124.68,124.67,0.063]
[1743468759310,20.28432314,124.68,124.67,0.063]
[1743468759536,0.28432314,124.68,124.67,0.063]
[1743468759686,0.14216157,124.68,124.67,0.063]
[1743468760082,32.4131543,124.71,124.67,20.063]
[1743468760308,32.4131543,124.71,124.67,67.01956428]
[1743468760515,32.4131543,124.71,124.67,0.063]
[1743468760915,32.4131543,124.71,124.68,48.30691542]
[1743468761201,32.4131543,124.71,124.68,18.64964886]
[1743468761836,5.43e-05,124.71,124.7,18.64964886]
[1743468762047,0.14216157,124.8,124.73,20.0]
[1743468762534,0.14216157,124.82,124.73,18.64964886]
[1743468762702,0.14216157,124.81,124.67,28.1369]
[1743468762904,0.14216157,124.81,124.72,20.0]
[1743468763329,0.28432314,124.79,124.72,28.0175]
[1743468763625,0.14216157,124.79,124.75,48.30691542]
[1743468763830,0.14216157,124.83,124.76,66.95656428]
[1743468764004,0.17216157,124.83,124.76,66.95656428]
[1743468764206,0.03,124.83,124.79,68.30691542]
[1743468764426,0.03,124.83,124.8,66.95656428]
[1743468764610,0.03,124.83,124.82,86.95656428]
[1743468764927,0.03,124.86,124.85,20.0]
[1743468765128,0.03,124.86,124.85,68.30691542]
[1743468765336,0.03,124.86,124.85,74.96616428]
[1743468765625,0.03,124.95,124.93,20.0]
[1743468765830,0.03,124.95,124.94,38.64964886]
[1743468766205,0.03,124.95,124.9,20.0]
[1743468766404,0.03,124.95,124.89,20.0]
[1743468766607,0.31432314,124.95,124.88,18.64964886]
[1743468766909,0.31432314,124.95,124.83,81.64216157]
[1743468766910,0.31432314,124.95,124.86,66.95656428]
[1743468767105,8.31762314,124.95,124.86,48.30691542]
[1743468767302,8.31762314,124.95,124.84,48.30691542]
[1743468767628,38.933972,124.91,124.79,48.30691542]
[1743468767829,38.933972,124.91,124.8,48.30691542]
[1743468768135,38.933972,124.91,124.8,18.64964886]
[1743468768313,38.933972,124.91,124.75,1.5199]
[1743468768517,38.933972,124.91,124.79,66.95656428]
[1743468768718,38.933972,124.91,124.77,54.65391542]
[1743468768920,38.933972,124.91,124.77,6.347]
[1743468769125,38.933972,124.91,124.78,48.30691542]
[1743468769435,0.28432314,124.86,124.79,66.95656428]
[1743468769631,0.14216157,124.86,124.81,48.30691542]
[1743468769938,0.28432314,124.89,124.8,48.30691542]
[1743468770234,0.14216157,124.89,124.79,66.95656428]
[1743468770440,0.28432314,124.87,124.77,54.65391542]
[1743468770733,18.933972,124.87,124.77,6.347]
[1743468771316,0.14216157,124.85,124.77,54.65391542]
[1743468771708,0.14216157,124.84,124.77,54.65391542]
[1743468771913,0.14216157,124.85,124.8,68.30691542]
[1743468772133,0.28432314,124.87,124.8,18.64964886]
[1743468772515,0.28432314,124.87,124.8,20.0]
[1743468772716,0.28432314,124.87,124.79,66.95656428]
[1743468772938,89.307,124.89,124.81,48.30691542]
[1743468772939,0.28432314,124.88,124.81,48.30691542]
[1743468773121,8.29212314,124.88,124.81,20.0]
[1743468773323,8.29212314,124.88,124.78,18.64964886]
[1743468773545,0.28432314,124.86,124.77,6.347]
[1743468773840,0.28432314,124.86,124.76,18.64964886]
[1743468774029,0.28432314,124.86,124.76,66.95656428]
[1743468774341,0.28432314,124.84,124.75,49.82681542]
[1743468775344,0.14216157,124.82,124.75,48.30691542]
[1743468775542,81.58432314,124.82,124.73,18.64964886]
[1743468775728,81.58432314,124.82,124.72,54.32931542]
[1743468775729,0.28432314,124.8,124.72,54.32931542]
[1743468775947,0.28432314,124.8,124.69,1.5771]
[1743468776146,18.933972,124.78,124.68,48.30691542]
[1743468776356,18.933972,124.78,124.67,48.36991542]
[1743468776650,18.933972,124.78,124.67,0.063]
[1743468776849,0.28432314,124.73,124.67,0.063]
[1743468777034,18.933972,124.76,124.67,0.063]
[1743468777035,11.05397852,124.76,124.72,12.27654005]
[1743468777231,81.3,124.75,124.72,12.27654005]
[1743468777435,81.3,124.75,124.72,4.005e-05]
[1743468777436,89.3166,124.74,124.72,4.005e-05]
[1743468777656,81.3,124.73,124.7,24.55308011]
[1743468777853,81.3,124.72,124.7,8.011e-05]
[1743468778059,81.3,124.71,124.67,0.063]
[1743468778240,81.3,124.7,124.67,0.063]
[1743468778438,81.3,124.69,124.67,0.063]
[1743468779060,0.28432314,124.68,124.67,0.063]
[1743468779246,20.28432314,124.68,124.67,0.063]
[1743468779844,38.933972,124.72,124.67,0.063]
[1743468780050,0.28432314,124.7,124.67,0.063]
[1743468780639,0.14216157,124.68,124.67,0.063]
[1743468780839,0.28432314,124.68,124.67,0.063]
[1743468781443,20.0,124.68,124.67,0.063]
[1743468781647,20.28432314,124.68,124.67,0.063]
[1743468782663,38.933972,124.68,124.67,0.063]
[1743468783346,0.28432314,124.67,124.66,0.063]
[1743468783542,0.28432314,124.67,124.54,54.86091542]
[1743468783543,0.28432314,124.65,124.55,18.64964886]
[1743468783757,0.28432314,124.65,124.56,48.30691542]
[1743468783952,0.28432314,124.65,124.55,66.95656428]
[1743468784158,0.28432314,124.62,124.54,6.554]
[1743468785168,0.28432314,124.62,124.54,54.86091542]
[1743468785346,0.28432314,124.62,124.55,48.30691542]
[1743468785547,0.28432314,124.62,124.54,54.86091542]
[1743468785744,0.28432314,124.62,124.55,18.64964886]
[1743468786575,0.28432314,124.62,124.54,6.554]
[1743468786746,0.14216157,124.6,124.54,6.554]
[1743468786952,0.14216157,124.6,124.54,0.063]
[1743468787669,0.28432314,124.6,124.54,0.063]
[1743468788048,0.28432314,124.6,124.54,18.71264886]
[1743468788351,0.28432314,124.6,124.54,0.063]
[1743468788560,0.28432314,124.6,124.54,18.71264886]
[1743468788864,81.3,124.64,124.55,66.95656428]
[1743468789062,0.14216157,124.63,124.58,48.30691542]
[1743468789270,0.28432314,124.63,124.55,20.0]
[1743468789444,0.28432314,124.63,124.56,66.95656428]
[1743468789846,0.28432314,124.63,124.56,18.64964886]
[1743468790365,0.28432314,124.63,124.54,48.36991542]
[1743468790572,0.14216157,124.61,124.54,18.71264886]
[1743468791149,0.28432314,124.61,124.54,26.74214886]
[1743468791355,0.28432314,124.61,124.54,0.063]
[1743468793344,0.28432314,124.59,124.54,0.063]
[1743468795157,0.14216157,124.59,124.54,0.063]
[1743468795456,0.14216157,124.59,124.54,18.71264886]
[1743468795877,0.28432314,124.59,124.54,0.063]
[1743468796288,0.14216157,124.57,124.54,0.063]
[1743468796963,0.28432314,124.55,124.54,0.063]
[1743468798657,8.31322314,124.55,124.54,0.063]
[1743468799371,0.28432314,124.55,124.54,0.063]
[1743468801278,0.14216157,124.55,124.54,0.063]
[1743468801586,26.2331,124.64,124.54,0.063]
[1743468801587,0.28432314,124.6,124.54,0.063]
[1743468801761,81.3,124.61,124.55,66.95656428]
[1743468801956,0.14216157,124.64,124.56,8.0282]
[1743468802156,0.28432314,124.64,124.56,8.0282]
[1743468802367,18.933972,124.64,124.55,18.64964886]
[1743468802571,0.28432314,124.6,124.54,6.54]
[1743468803354,0.28432314,124.6,124.54,0.063]
[1743468803554,20.28432314,124.6,124.54,0.063]
[1743468804167,101.58432314,124.6,124.54,0.063]
[1743468804796,81.58432314,124.6,124.54,0.063]
[1743468805583,81.44216157,124.6,124.54,0.063]
[1743468806278,81.58432314,124.65,124.55,74.98546428]
[1743468806482,81.58432314,124.65,124.57,48.30691542]
[1743468807353,0.14216157,124.65,124.58,18.64964886]
[1743468807581,0.31432314,124.67,124.58,66.95656428]
[1743468808156,8.33562314,124.67,124.58,66.95656428]
[1743468808362,8.33562314,124.67,124.58,18.64964886]
[1743468808558,8.33562314,124.67,124.56,28.24204886]
[1743468808971,26.985272,124.67,124.56,28.24204886]
[1743468809383,0.14216157,124.65,124.56,28.24204886]
[1743468809684,0.14216157,124.65,124.56,76.54896428]
[1743468810180,0.31432314,124.67,124.59,18.64964886]
[1743468810384,0.31432314,124.67,124.6,8.0256]
[1743468810564,0.31432314,124.67,124.61,18.64964886]
[1743468810769,0.31432314,124.67,124.6,18.64964886]
[1743468811784,0.17216157,124.67,124.61,18.64964886]
[1743468811967,0.03,124.67,124.63,18.64964886]
[1743468812282,0.03,124.67,124.6,6.50866157]
[1743468812484,0.17216157,124.67,124.6,73.32306428]
[1743468812668,0.03,124.66,124.61,18.64964886]
[1743468813484,0.03,124.66,124.6,6.3665]
[1743468813980,0.17216157,124.66,124.6,6.3665]
[1743468814777,8.0224,124.65,124.6,6.3665]
[1743468814958,0.17216157,124.66,124.6,6.3665]
[1743468814959,0.03,124.66,124.6,6.3665]
[1743468815160,0.14216157,124.65,124.6,6.3665]
[1743468816676,8.0519,124.66,124.6,6.3665]
[1743468816886,0.17216157,124.66,124.61,18.64964886]
[1743468817178,0.17216157,124.66,124.6,6.3665]
[1743468819184,0.14216157,124.65,124.6,6.3665]
[1743468819679,0.14216157,124.65,124.57,32.20444007]
[1743468819870,0.14216157,124.65,124.57,18.64964886]
[1743468820068,0.14216157,124.65,124.57,50.85408893]
[1743468820986,0.14216157,124.63,124.57,58.88138893]
[1743468821289,0.14216157,124.65,124.59,32.20444007]
[1743468821494,0.03,124.66,124.6,50.85408893]
[1743468821657,0.03,124.66,124.62,18.64964886]
[1743468821856,0.03,124.66,124.61,18.64964886]
[1743468822663,20.03,124.66,124.61,18.64964886]
[1743468823275,0.17216157,124.66,124.61,18.64964886]
[1743468823472,28.19406157,124.66,124.6,18.64964886]
[1743468823683,0.14216157,124.65,124.57,8.0271]
[1743468823884,0.14216157,124.65,124.58,18.64964886]
[1743468824188,0.14216157,124.65,124.57,18.64964886]
[1743468825080,20.0,124.64,124.57,50.85408893]
[1743468825482,20.0,124.64,124.57,58.88138893]
[1743468825981,20.0,124.64,124.57,50.85408893]
[1743468826186,0.14216157,124.63,124.57,50.85408893]
[1743468827092,0.14216157,124.63,124.57,58.88148893]
[1743468827788,20.14216157,124.63,124.57,58.88148893]
[1743468827969,20.0,124.62,124.57,58.88148893]
[1743468828470,20.0,124.62,124.57,26.67704886]
[1743468828677,8.16596157,124.63,124.57,18.64964886]
[1743468828989,28.16596157,124.63,124.57,18.64964886]
[1743468829292,20.0,124.6,124.57,18.64964886]
[1743468829787,8.0262,124.6,124.56,0.063]
[1743468830186,28.0262,124.6,124.56,0.063]
[1743468831288,0.14216157,124.59,124.56,0.063]
[1743468831664,0.28432314,124.59,124.56,0.063]
[1743468832107,0.14216157,124.59,124.56,0.063]
[1743468833373,8.16876157,124.59,124.56,0.063]
[1743468833895,20.0,124.57,124.56,0.063]
[1743468834079,8.0269,124.58,124.56,0.063]
[1743468837096,0.14216157,124.57,124.56,0.063]
[1743468838195,20.14216157,124.57,124.56,0.063]
[1743468838795,0.14216157,124.57,124.56,0.063]
[1743468839789,20.14216157,124.57,124.56,0.063]
[1743468840498,0.14216157,124.59,124.56,0.063]
[1743468840690,20.0,124.57,124.56,0.063]
[1743468841273,20.14216157,124.59,124.56,0.063]
[1743468841473,0.14216157,124.61,124.56,0.063]
[1743468841886,20.0,124.59,124.56,0.063]
[1743468842110,0.14216157,124.6,124.56,0.063]
[1743468842398,20.0,124.62,124.56,0.063]
[1743468842597,0.14216157,124.61,124.56,0.063]
[1743468842799,20.28432314,124.61,124.56,0.063]
[1743468842985,0.14216157,124.58,124.56,0.063]
[1743468843490,20.14216157,124.57,124.56,0.063]
[1743468843995,20.28432314,124.57,124.56,0.063]
[1743468845180,20.0,124.55,124.54,0.063]
[1743468845386,0.14216157,124.55,124.54,0.063]
[1743468847294,8.17106157,124.55,124.54,0.063]
[1743468847495,8.31322314,124.55,124.54,0.063]
[1743468848374,0.28432314,124.55,124.54,0.063]
[1743468848571,20.0,124.55,124.54,0.063]
[1743468848797,20.14216157,124.55,124.54,0.063]
[1743468848999,20.28432314,124.55,124.54,0.063]
[1743468849198,28.31322314,124.55,124.54,0.063]
[1743468850301,0.28432314,124.55,124.54,0.063]
[1743468850481,8.31322314,124.55,124.54,0.063]
[1743468850676,0.28432314,124.55,124.54,0.063]
[1743468851000,8.31322314,124.55,124.54,0.063]
[1743468851404,28.31322314,124.55,124.54,0.063]
[1743468851579,26.962872,124.55,124.54,0.063]
[1743468851781,18.933972,124.54,124.53,0.063]
[1743468852192,0.28432314,124.54,124.53,0.063]
[1743468853288,8.31382314,124.54,124.53,0.0001]
[1743468853493,0.14216157,124.5,124.48,0.063]
[1743468853681,0.28432314,124.5,124.48,0.063]
[1743468855303,8.17486157,124.49,124.48,0.063]
[1743468856106,0.14216157,124.49,124.48,0.063]
[1743468857601,20.14216157,124.49,124.48,0.063]
[1743468857898,0.14216157,124.52,124.48,0.063]
[1743468858099,20.0,124.5,124.48,0.063]
[1743468858505,20.28432314,124.49,124.48,0.063]
[1743468858899,20.28432314,124.49,124.41,0.003]
[1743468858900,0.28432314,124.44,124.41,0.003]
[1743468859083,0.28432314,124.44,124.36,1.5955]
[1743468859084,20.0,124.41,124.36,1.5955]
[1743468859284,20.0,124.4,124.36,1.5955]
[1743468860180,0.14216157,124.39,124.36,1.5955]
[1743468860488,0.14216157,124.39,124.35,6.4107]
[1743468861596,8.32352314,124.39,124.32,1.5136]
[1743468862289,8.32352314,124.39,124.35,0.03]
[1743468862490,0.14216157,124.39,124.35,0.03]
[1743468862696,20.14216157,124.39,124.35,0.03]
[1743468862915,0.14216157,124.41,124.35,0.03]
[1743468863213,81.3,124.42,124.35,0.03]
[1743468863414,0.14216157,124.42,124.35,0.03]
[1743468864305,9.90437149,124.43,124.35,18.67964886]
[1743468865429,0.14216157,124.42,124.35,0.03]
[1743468866034,8.32192314,124.42,124.35,0.03]
[1743468866434,0.28432314,124.42,124.35,0.03]
[1743468867712,0.14216157,124.42,124.35,0.03]
[1743468869937,9.90437149,124.43,124.35,0.03]
[1743468870103,0.28432314,124.42,124.35,0.03]
[1743468870503,20.0,124.4,124.35,0.03]
[1743468874341,9.90437149,124.43,124.35,0.03]
[1743468874522,20.0,124.4,124.35,0.03]
[1743468874830,0.14216157,124.39,124.35,0.03]
[1743468875042,110.62824667,124.39,124.28,7.7827]
[1743468875215,20.0,124.35,124.28,7.7827]
[1743468875627,8.0424,124.34,124.28,7.7827]
[1743468875836,28.042,124.35,124.28,7.7827]
[1743468876025,20.0,124.34,124.28,7.7827]
[1743468876417,20.0,124.35,124.28,15.8289]
[1743468876637,20.0,124.35,124.28,7.7827]
[1743468876638,20.0,124.34,124.28,7.7827]
[1743468876809,0.14216157,124.37,124.28,15.8289]
[1743468877009,89.56412944,124.38,124.29,18.64964886]
[1743468877314,20.0,124.38,124.29,18.64964886]
[1743468877834,0.28432314,124.4,124.31,18.64964886]
[1743468878132,20.0,124.38,124.31,18.64964886]
[1743468878335,13.58,124.41,124.31,18.64964886]
[1743468878533,0.14216157,124.4,124.31,18.64964886]
[1743468878832,0.28432314,124.4,124.31,18.64964886]
[1743468879014,0.28432314,124.4,124.3,8.045]
[1743468879215,0.28432314,124.4,124.31,18.64964886]
[1743468880035,0.28432314,124.4,124.31,8.0439]
[1743468881815,0.28432314,124.44,124.32,18.79181043]
[1743468882114,8.32032314,124.44,124.34,18.64964886]
[1743468882326,18.22469463,124.44,124.34,18.64964886]
[1743468882521,20.0,124.41,124.34,18.64964886]
[1743468884039,20.0,124.41,124.35,8.0418]
[1743468884228,0.14216157,124.4,124.31,8.0444]
[1743468884535,20.0,124.37,124.29,18.64964886]
[1743468884750,20.0,124.36,124.29,18.64964886]
[1743468885039,20.0,124.36,124.29,26.69504886]
[1743468885221,20.0,124.36,124.31,0.03]
[1743468886652,20.0,124.35,124.31,0.03]